[Event "Titled Tuesday Blitz March 21 Early 2023"]
[White "MKlose11"]
[Black "lluiss"]
[WhiteElo "2603"]
[BlackElo "2157"]
[Result "1-0"]
[Round "01"]
[TimeControl "180+2"]
[Date "2023.03.21"]
[WhiteClock "0:01:27"]
[BlackClock "0:00:40"]

1. e4 {[%clk 0:02:57]}  c5 {[%clk 0:02:59]} 2. Nc3 {[%clk 0:02:54]}  d6 {[%clk 0:02:59]} 3. g3 {[%clk 0:02:54]}  Nc6 {[%clk 0:02:54]} 4. Bg2 {[%clk 0:02:54]}  g6 {[%clk 0:02:55]} 5. d3 {[%clk 0:02:54]}  Bg7 {[%clk 0:02:55]} 6. h3 {[%clk 0:02:54]}  Nf6 {[%clk 0:02:54]} 7. Be3 {[%clk 0:02:49]}  O-O {[%clk 0:02:50]} 8. Qd2 {[%clk 0:02:49]}  Nd4 {[%clk 0:02:50]} 9. Nd1 {[%clk 0:02:48]}  Re8 {[%clk 0:02:38]} 10. c3 {[%clk 0:02:47]}  Nc6 {[%clk 0:02:39]} 11. Ne2 {[%clk 0:02:48]}  Rb8 {[%clk 0:02:36]} 12. O-O {[%clk 0:02:48]}  b5 {[%clk 0:02:36]} 13. Bh6 {[%clk 0:02:42]}  b4 {[%clk 0:02:29]} 14. Bxg7 {[%clk 0:02:42]}  Kxg7 {[%clk 0:02:30]} 15. f4 {[%clk 0:02:42]}  bxc3 {[%clk 0:02:29]} 16. bxc3 {[%clk 0:02:43]}  Bd7 {[%clk 0:02:15]} 17. Ne3 {[%clk 0:02:40]}  Qa5 {[%clk 0:02:14]} 18. Nc4 {[%clk 0:02:31]}  Qa6 {[%clk 0:02:02]} 19. e5 {[%clk 0:02:31]}  dxe5 {[%clk 0:01:38]} 20. fxe5 {[%clk 0:02:32]}  Ng8 {[%clk 0:01:35]} 21. Nf4 {[%clk 0:02:21]}  Rf8 {[%clk 0:01:29]} 22. Qe3 {[%clk 0:02:16]}  e6 {[%clk 0:01:17]} 23. Qxc5 {[%clk 0:02:09]}  Rfc8 {[%clk 0:01:17]} 24. Qf2 {[%clk 0:02:07]}  Be8 {[%clk 0:01:13]} 25. Nd6 {[%clk 0:02:01]}  Rc7 {[%clk 0:01:10]} 26. d4 {[%clk 0:01:54]}  Nh6 {[%clk 0:01:00]} 27. Nh5+ {[%clk 0:01:50]}  Kf8 {[%clk 0:00:49]} 28. Qf6 {[%clk 0:01:32]}  Nf5 {[%clk 0:00:43]} 29. g4 {[%clk 0:01:28]}  Nxd6 {[%clk 0:00:41]} 30. exd6 {[%clk 0:01:27]}  Rcb7 {[%clk 0:00:40]} 31. Qg7# {[%clk 0:01:27]} 1-0


[Site "https://www.chess.com"]

[Event "Titled Tuesday Blitz March 21 Early 2023"]
[White "Pinheiro, Iung Alicio de O."]
[Black "Vargas Rodriguez, Wilver"]
[WhiteFideId "2104350"]
[BlackFideId "3509672"]
[WhiteElo "2283"]
[BlackElo "2238"]
[Result "1-0"]
[Round "01"]
[TimeControl "180+2"]
[Date "2023.03.21"]
[WhiteClock "0:00:26"]
[BlackClock "0:00:01"]

1. e4 {[%clk 0:02:58]}  c5 {[%clk 0:02:59]} 2. Nf3 {[%clk 0:02:56]}  d6 {[%clk 0:02:59]} 3. Nc3 {[%clk 0:02:54]}  Nf6 {[%clk 0:02:58]} 4. e5 {[%clk 0:02:52]}  dxe5 {[%clk 0:02:51]} 5. Nxe5 {[%clk 0:02:53]}  Nfd7 {[%clk 0:02:47]} 6. Nf3 {[%clk 0:02:23]}  e6 {[%clk 0:02:37]} 7. g3 {[%clk 0:02:20]}  b6 {[%clk 0:02:36]} 8. Bg2 {[%clk 0:02:20]}  Bb7 {[%clk 0:02:37]} 9. O-O {[%clk 0:02:20]}  Be7 {[%clk 0:02:35]} 10. d4 {[%clk 0:02:18]}  cxd4 {[%clk 0:02:34]} 11. Nxd4 {[%clk 0:02:18]}  Bxg2 {[%clk 0:02:33]} 12. Kxg2 {[%clk 0:02:19]}  O-O {[%clk 0:02:31]} 13. Qf3 {[%clk 0:02:17]}  Na6 {[%clk 0:01:57]} 14. Nc6 {[%clk 0:01:53]}  Qe8 {[%clk 0:01:56]} 15. Be3 {[%clk 0:01:30]}  Nac5 {[%clk 0:00:34]} 16. Nb5 {[%clk 0:01:22]}  Nb8 {[%clk 0:00:07]} 17. Nxe7+ {[%clk 0:01:13]}  Qxe7 {[%clk 0:00:08]} 18. Qxa8 {[%clk 0:01:12]}  Nb7 {[%clk 0:00:08]} 19. Qxa7 {[%clk 0:01:04]}  Qd7 {[%clk 0:00:06]} 20. Qxb6 {[%clk 0:01:00]}  Nc6 {[%clk 0:00:07]} 21. Rad1 {[%clk 0:00:58]}  Qc8 {[%clk 0:00:04]} 22. Nd6 {[%clk 0:00:53]}  Nxd6 {[%clk 0:00:04]} 23. Rxd6 {[%clk 0:00:53]}  Ne5 {[%clk 0:00:02]} 24. Qd4 {[%clk 0:00:30]}  Qa8+ {[%clk 0:00:02]} 25. f3 {[%clk 0:00:30]}  Nc6 {[%clk 0:00:02]} 26. Qd2 {[%clk 0:00:28]}  Ne5 {[%clk 0:00:01]} 27. b3 {[%clk 0:00:26]} 1-0


[Site "https://www.chess.com"]

[Event "Titled Tuesday Blitz March 21 Early 2023"]
[White "ilya2700"]
[Black "Diaz Rosas, Julio Cesar"]
[BlackFideId "5105099"]
[WhiteElo "2134"]
[BlackElo "2270"]
[Result "0-1"]
[Round "01"]
[TimeControl "180+2"]
[Date "2023.03.21"]
[WhiteClock "0:00:02"]
[BlackClock "0:01:06"]

1. d4 {[%clk 0:02:59]}  Nf6 {[%clk 0:02:59]} 2. c4 {[%clk 0:03:00]}  g6 {[%clk 0:02:59]} 3. Nc3 {[%clk 0:03:00]}  d5 {[%clk 0:02:59]} 4. cxd5 {[%clk 0:03:01]}  Nxd5 {[%clk 0:03:00]} 5. e4 {[%clk 0:03:01]}  Nxc3 {[%clk 0:03:00]} 6. bxc3 {[%clk 0:03:02]}  Bg7 {[%clk 0:03:01]} 7. Bc4 {[%clk 0:03:03]}  c5 {[%clk 0:03:01]} 8. Ne2 {[%clk 0:03:03]}  O-O {[%clk 0:03:00]} 9. Be3 {[%clk 0:03:03]}  Nc6 {[%clk 0:03:00]} 10. O-O {[%clk 0:03:04]}  b6 {[%clk 0:03:00]} 11. Rc1 {[%clk 0:03:02]}  Bb7 {[%clk 0:02:58]} 12. Qd2 {[%clk 0:03:03]}  Qd7 {[%clk 0:02:55]} 13. Rfd1 {[%clk 0:03:02]}  Rfd8 {[%clk 0:02:53]} 14. f3 {[%clk 0:02:49]}  Rac8 {[%clk 0:02:44]} 15. Bb5 {[%clk 0:02:46]}  a6 {[%clk 0:02:41]} 16. Bxc6 {[%clk 0:02:46]}  Qxc6 {[%clk 0:02:40]} 17. d5 {[%clk 0:02:46]}  Qa4 {[%clk 0:02:33]} 18. c4 {[%clk 0:02:46]}  e6 {[%clk 0:02:32]} 19. h4 {[%clk 0:02:34]}  f5 {[%clk 0:02:24]} 20. h5 {[%clk 0:02:28]}  b5 {[%clk 0:02:19]} 21. Bg5 {[%clk 0:02:13]}  Rd7 {[%clk 0:02:15]} 22. hxg6 {[%clk 0:02:04]}  hxg6 {[%clk 0:02:14]} 23. Nf4 {[%clk 0:02:04]}  Bd4+ {[%clk 0:01:53]} 24. Kh1 {[%clk 0:02:02]}  Rh7+ {[%clk 0:01:46]} 25. Nh3 {[%clk 0:02:00]}  bxc4 {[%clk 0:01:39]} 26. dxe6 {[%clk 0:01:40]}  fxe4 {[%clk 0:01:36]} 27. fxe4 {[%clk 0:00:40]}  Bxe4 {[%clk 0:01:26]} 28. Kh2 {[%clk 0:00:40]}  Qc6 {[%clk 0:01:20]} 29. Rxc4 {[%clk 0:00:27]}  Qxe6 {[%clk 0:01:19]} 30. Qxd4 {[%clk 0:00:20]}  cxd4 {[%clk 0:01:13]} 31. Rxc8+ {[%clk 0:00:20]}  Qxc8 {[%clk 0:01:13]} 32. Rxd4 {[%clk 0:00:21]}  Qc7+ {[%clk 0:01:11]} 33. Kg1 {[%clk 0:00:16]}  Rxh3 {[%clk 0:01:10]} 34. gxh3 {[%clk 0:00:14]}  Qg3+ {[%clk 0:01:09]} 35. Kf1 {[%clk 0:00:13]}  Qxg5 {[%clk 0:01:09]} 36. a4 {[%clk 0:00:10]}  Qf4+ {[%clk 0:01:08]} 37. Ke2 {[%clk 0:00:07]}  Qf3+ {[%clk 0:01:06]} 38. Kd2 {[%clk 0:00:07]}  Qf2+ {[%clk 0:01:06]} 39. Kc3 {[%clk 0:00:07]}  Qc2+ {[%clk 0:01:06]} 40. Kb4 {[%clk 0:00:07]}  a5+ {[%clk 0:01:06]} 41. Kb5 {[%clk 0:00:05]}  Qc6+ {[%clk 0:01:05]} 42. Kxa5 {[%clk 0:00:02]}  Qc5+ {[%clk 0:01:05]} 43. Ka6 {[%clk 0:00:02]}  Qxd4 {[%clk 0:01:06]} 0-1


[Site "https://www.chess.com"]

[Event "Titled Tuesday Blitz March 21 Early 2023"]
[White "Sokac, Marko"]
[Black "th3d4rkness"]
[WhiteFideId "14531356"]
[WhiteElo "2355"]
[BlackElo "2128"]
[Result "1-0"]
[Round "01"]
[TimeControl "180+2"]
[Date "2023.03.21"]
[WhiteClock "0:02:30"]
[BlackClock "0:01:16"]

1. e4 {[%clk 0:03:00]}  c5 {[%clk 0:02:59]} 2. a3 {[%clk 0:03:00]}  Nc6 {[%clk 0:02:56]} 3. b4 {[%clk 0:03:01]}  cxb4 {[%clk 0:02:56]} 4. axb4 {[%clk 0:03:01]}  Nxb4 {[%clk 0:02:57]} 5. d4 {[%clk 0:03:02]}  d5 {[%clk 0:02:56]} 6. c3 {[%clk 0:03:02]}  Nc6 {[%clk 0:02:55]} 7. exd5 {[%clk 0:03:03]}  Qxd5 {[%clk 0:02:54]} 8. Na3 {[%clk 0:03:04]}  e6 {[%clk 0:02:51]} 9. Nb5 {[%clk 0:03:03]}  Qe4+ {[%clk 0:02:24]} 10. Be2 {[%clk 0:02:55]}  Kd8 {[%clk 0:02:06]} 11. Nf3 {[%clk 0:02:43]}  Nf6 {[%clk 0:01:46]} 12. O-O {[%clk 0:02:41]}  Bd7 {[%clk 0:01:42]} 13. Ng5 {[%clk 0:02:38]}  Qg6 {[%clk 0:01:41]} 14. Bd3 {[%clk 0:02:38]}  Qh5 {[%clk 0:01:31]} 15. Qxh5 {[%clk 0:02:38]}  Nxh5 {[%clk 0:01:29]} 16. Nxf7+ {[%clk 0:02:38]}  Ke7 {[%clk 0:01:30]} 17. Nxh8 {[%clk 0:02:38]}  g6 {[%clk 0:01:21]} 18. Bg5+ {[%clk 0:02:38]}  Nf6 {[%clk 0:01:20]} 19. d5 {[%clk 0:02:34]}  Ne5 {[%clk 0:01:16]} 20. d6+ {[%clk 0:02:30]} 1-0


[Site "https://www.chess.com"]

[Event "Titled Tuesday Blitz March 21 Early 2023"]
[White "Michalski, Olaf"]
[Black "Taboas Rodriguez, Daniel"]
[WhiteFideId "1106740"]
[BlackFideId "2208466"]
[WhiteElo "2173"]
[BlackElo "2365"]
[Result "0-1"]
[Round "01"]
[TimeControl "180+2"]
[Date "2023.03.21"]
[WhiteClock "0:00:01"]
[BlackClock "0:01:29"]

1. d4 {[%clk 0:02:57]}  Nf6 {[%clk 0:02:58]} 2. c4 {[%clk 0:02:57]}  g6 {[%clk 0:02:59]} 3. Nc3 {[%clk 0:02:57]}  Bg7 {[%clk 0:02:59]} 4. e4 {[%clk 0:02:56]}  d6 {[%clk 0:02:59]} 5. Nf3 {[%clk 0:02:57]}  O-O {[%clk 0:03:00]} 6. Be2 {[%clk 0:02:57]}  e5 {[%clk 0:03:01]} 7. d5 {[%clk 0:02:57]}  Nbd7 {[%clk 0:02:59]} 8. O-O {[%clk 0:02:56]}  Nc5 {[%clk 0:02:58]} 9. Qc2 {[%clk 0:02:56]}  a5 {[%clk 0:02:58]} 10. Bg5 {[%clk 0:02:54]}  h6 {[%clk 0:02:58]} 11. Be3 {[%clk 0:02:54]}  Nfd7 {[%clk 0:02:55]} 12. Nd2 {[%clk 0:02:36]}  f5 {[%clk 0:02:54]} 13. exf5 {[%clk 0:02:25]}  gxf5 {[%clk 0:02:54]} 14. f4 {[%clk 0:02:25]}  exf4 {[%clk 0:02:50]} 15. Bxf4 {[%clk 0:02:25]}  Ne5 {[%clk 0:02:50]} 16. Nf3 {[%clk 0:02:07]}  Bd7 {[%clk 0:02:45]} 17. Nxe5 {[%clk 0:01:09]}  dxe5 {[%clk 0:02:44]} 18. Be3 {[%clk 0:01:09]}  Qe7 {[%clk 0:02:39]} 19. Nb5 {[%clk 0:00:54]}  f4 {[%clk 0:02:32]} 20. Bf2 {[%clk 0:00:40]}  e4 {[%clk 0:02:31]} 21. Bd4 {[%clk 0:00:19]}  Bxb5 {[%clk 0:02:22]} 22. Bxg7 {[%clk 0:00:17]}  Qxg7 {[%clk 0:02:14]} 23. cxb5 {[%clk 0:00:18]}  b6 {[%clk 0:02:14]} 24. Bc4 {[%clk 0:00:15]}  Kh8 {[%clk 0:02:14]} 25. Kh1 {[%clk 0:00:14]}  Rae8 {[%clk 0:02:13]} 26. Rae1 {[%clk 0:00:13]}  Qd4 {[%clk 0:02:11]} 27. b3 {[%clk 0:00:10]}  Rf6 {[%clk 0:01:50]} 28. Qf2 {[%clk 0:00:10]}  Qxf2 {[%clk 0:01:49]} 29. Rxf2 {[%clk 0:00:10]}  Kg7 {[%clk 0:01:46]} 30. g3 {[%clk 0:00:09]}  fxg3 {[%clk 0:01:44]} 31. Rxf6 {[%clk 0:00:07]}  Kxf6 {[%clk 0:01:45]} 32. hxg3 {[%clk 0:00:08]}  Ke5 {[%clk 0:01:45]} 33. Kg2 {[%clk 0:00:06]}  Kd4 {[%clk 0:01:44]} 34. Rd1+ {[%clk 0:00:06]}  Ke3 {[%clk 0:01:44]} 35. Re1+ {[%clk 0:00:05]}  Kd2 {[%clk 0:01:44]} 36. Re2+ {[%clk 0:00:04]}  Kd1 {[%clk 0:01:42]} 37. Kf2 {[%clk 0:00:05]}  Rf8+ {[%clk 0:01:39]} 38. Ke3 {[%clk 0:00:05]}  Rf3+ {[%clk 0:01:39]} 39. Kd4 {[%clk 0:00:05]}  Rxg3 {[%clk 0:01:40]} 40. d6 {[%clk 0:00:02]}  cxd6 {[%clk 0:01:39]} 41. Kd5 {[%clk 0:00:03]}  Rc3 {[%clk 0:01:34]} 42. Rh2 {[%clk 0:00:01]}  e3 {[%clk 0:01:33]} 43. Kxd6 {[%clk 0:00:01]}  Rxc4 {[%clk 0:01:29]} 0-1


[Site "https://www.chess.com"]

[Event "Titled Tuesday Blitz March 21 Early 2023"]
[White "Ordekalog"]
[Black "Jaivardhan Raj"]
[BlackFideId "25744437"]
[WhiteElo "2590"]
[BlackElo "1772"]
[Result "1-0"]
[Round "01"]
[TimeControl "180+2"]
[Date "2023.03.21"]
[WhiteClock "0:01:20"]
[BlackClock "0:00:52"]

1. d4 {[%clk 0:02:58]}  Nf6 {[%clk 0:02:59]} 2. c4 {[%clk 0:02:57]}  e6 {[%clk 0:02:59]} 3. Nc3 {[%clk 0:02:57]}  b6 {[%clk 0:02:58]} 4. e4 {[%clk 0:02:55]}  Bb7 {[%clk 0:02:57]} 5. Bd3 {[%clk 0:02:54]}  Bb4 {[%clk 0:02:56]} 6. f3 {[%clk 0:02:50]}  d6 {[%clk 0:02:53]} 7. Ne2 {[%clk 0:02:49]}  O-O {[%clk 0:02:52]} 8. O-O {[%clk 0:02:47]}  Nbd7 {[%clk 0:02:51]} 9. Na4 {[%clk 0:02:38]}  d5 {[%clk 0:02:39]} 10. cxd5 {[%clk 0:02:32]}  exd5 {[%clk 0:02:36]} 11. e5 {[%clk 0:02:31]}  Ne8 {[%clk 0:02:36]} 12. f4 {[%clk 0:02:24]}  h6 {[%clk 0:02:21]} 13. a3 {[%clk 0:02:07]}  Be7 {[%clk 0:02:19]} 14. Ng3 {[%clk 0:02:06]}  c5 {[%clk 0:02:13]} 15. Nf5 {[%clk 0:02:03]}  Kh8 {[%clk 0:02:03]} 16. Qh5 {[%clk 0:01:55]}  Nef6 {[%clk 0:01:41]} 17. exf6 {[%clk 0:01:53]}  Nxf6 {[%clk 0:01:42]} 18. Qh3 {[%clk 0:01:44]}  cxd4 {[%clk 0:01:18]} 19. Nxh6 {[%clk 0:01:27]}  gxh6 {[%clk 0:01:18]} 20. Qxh6+ {[%clk 0:01:26]}  Kg8 {[%clk 0:01:18]} 21. Rf3 {[%clk 0:01:25]}  Ne4 {[%clk 0:00:52]} 22. Rh3 {[%clk 0:01:20]} 1-0


[Site "https://www.chess.com"]

[Event "Titled Tuesday Blitz March 21 Early 2023"]
[White "lolliNOPE"]
[Black "Ingebretsen, Jens E"]
[BlackFideId "1522965"]
[WhiteElo "2010"]
[BlackElo "2213"]
[Result "1/2-1/2"]
[Round "01"]
[TimeControl "180+2"]
[Date "2023.03.21"]
[WhiteClock "0:00:21"]
[BlackClock "0:00:49"]

1. e4 {[%clk 0:02:57]}  e5 {[%clk 0:02:58]} 2. Nc3 {[%clk 0:02:53]}  Nf6 {[%clk 0:02:57]} 3. f4 {[%clk 0:02:54]}  d6 {[%clk 0:02:56]} 4. Nf3 {[%clk 0:02:53]}  Nc6 {[%clk 0:02:57]} 5. Bb5 {[%clk 0:02:53]}  Bd7 {[%clk 0:02:48]} 6. d3 {[%clk 0:02:48]}  Be7 {[%clk 0:02:45]} 7. O-O {[%clk 0:02:44]}  O-O {[%clk 0:02:41]} 8. Kh1 {[%clk 0:02:40]}  Bg4 {[%clk 0:02:35]} 9. Bxc6 {[%clk 0:02:37]}  bxc6 {[%clk 0:02:36]} 10. h3 {[%clk 0:02:35]}  Bxf3 {[%clk 0:02:27]} 11. Qxf3 {[%clk 0:02:36]}  Qd7 {[%clk 0:02:21]} 12. b3 {[%clk 0:02:25]}  Rfe8 {[%clk 0:02:18]} 13. Bb2 {[%clk 0:02:21]}  Rad8 {[%clk 0:02:13]} 14. Ne2 {[%clk 0:02:17]}  exf4 {[%clk 0:02:08]} 15. Qxf4 {[%clk 0:02:10]}  c5 {[%clk 0:01:55]} 16. Ng3 {[%clk 0:02:02]}  Qe6 {[%clk 0:01:49]} 17. Nf5 {[%clk 0:01:51]}  Bf8 {[%clk 0:01:42]} 18. Nh6+ {[%clk 0:01:36]}  Kh8 {[%clk 0:01:36]} 19. Bxf6 {[%clk 0:01:37]}  gxf6 {[%clk 0:01:33]} 20. c4 {[%clk 0:01:28]}  Bxh6 {[%clk 0:01:12]} 21. Qxh6 {[%clk 0:01:25]}  Qe5 {[%clk 0:01:12]} 22. Qxf6+ {[%clk 0:01:23]}  Qxf6 {[%clk 0:01:12]} 23. Rxf6 {[%clk 0:01:24]}  Kg7 {[%clk 0:01:12]} 24. Raf1 {[%clk 0:01:24]}  Rd7 {[%clk 0:01:12]} 25. g4 {[%clk 0:01:19]}  Re6 {[%clk 0:01:12]} 26. R6f5 {[%clk 0:01:16]}  h6 {[%clk 0:01:11]} 27. Kg2 {[%clk 0:01:15]}  a5 {[%clk 0:01:09]} 28. Kg3 {[%clk 0:01:09]}  c6 {[%clk 0:01:10]} 29. h4 {[%clk 0:01:02]}  d5 {[%clk 0:01:08]} 30. exd5 {[%clk 0:00:59]}  cxd5 {[%clk 0:01:08]} 31. Rxd5 {[%clk 0:00:44]}  Rxd5 {[%clk 0:01:08]} 32. cxd5 {[%clk 0:00:45]}  Re5 {[%clk 0:01:05]} 33. d6 {[%clk 0:00:43]}  Rd5 {[%clk 0:01:05]} 34. Rf3 {[%clk 0:00:34]}  Rxd6 {[%clk 0:01:04]} 35. Kf4 {[%clk 0:00:34]}  Rd4+ {[%clk 0:01:04]} 36. Kg3 {[%clk 0:00:33]}  a4 {[%clk 0:01:04]} 37. bxa4 {[%clk 0:00:26]}  Rxa4 {[%clk 0:01:05]} 38. Rf5 {[%clk 0:00:26]}  Ra5 {[%clk 0:00:58]} 39. Rd5 {[%clk 0:00:23]}  Kf6 {[%clk 0:00:56]} 40. Kf4 {[%clk 0:00:22]}  Ra4+ {[%clk 0:00:56]} 41. Kf3 {[%clk 0:00:22]}  c4 {[%clk 0:00:47]} 42. dxc4 {[%clk 0:00:19]}  Rxc4 {[%clk 0:00:48]} 43. Ra5 {[%clk 0:00:19]}  Rc3+ {[%clk 0:00:48]} 44. Kf4 {[%clk 0:00:20]}  Rc4+ {[%clk 0:00:48]} 45. Kf3 {[%clk 0:00:20]}  Rc3+ {[%clk 0:00:49]} 46. Kf4 {[%clk 0:00:20]}  Rc4+ {[%clk 0:00:49]} 47. Kf3 {[%clk 0:00:21]} 1/2-1/2


[Site "https://www.chess.com"]

[Event "Titled Tuesday Blitz March 21 Early 2023"]
[White "Denishev, Marat"]
[Black "dorpato"]
[WhiteFideId "24131563"]
[WhiteElo "2302"]
[BlackElo "2005"]
[Result "1-0"]
[Round "01"]
[TimeControl "180+2"]
[Date "2023.03.21"]
[WhiteClock "0:02:38"]
[BlackClock "0:00:19"]

1. d4 {[%clk 0:03:00]}  Nf6 {[%clk 0:02:58]} 2. Nc3 {[%clk 0:03:01]}  d5 {[%clk 0:02:56]} 3. Bf4 {[%clk 0:03:01]}  g6 {[%clk 0:02:54]} 4. Qd2 {[%clk 0:03:01]}  Bg7 {[%clk 0:02:53]} 5. Bh6 {[%clk 0:03:00]}  O-O {[%clk 0:02:48]} 6. h4 {[%clk 0:02:59]}  e6 {[%clk 0:02:40]} 7. f3 {[%clk 0:02:55]}  Qe7 {[%clk 0:02:21]} 8. O-O-O {[%clk 0:02:53]}  Rd8 {[%clk 0:02:20]} 9. g4 {[%clk 0:02:52]}  Bxh6 {[%clk 0:02:18]} 10. Qxh6 {[%clk 0:02:52]}  Qf8 {[%clk 0:02:18]} 11. Qg5 {[%clk 0:02:50]}  h6 {[%clk 0:02:12]} 12. Qxf6 {[%clk 0:02:49]}  Nd7 {[%clk 0:01:56]} 13. Qf4 {[%clk 0:02:48]}  c5 {[%clk 0:01:54]} 14. e4 {[%clk 0:02:45]}  dxe4 {[%clk 0:01:24]} 15. Nxe4 {[%clk 0:02:45]}  cxd4 {[%clk 0:01:21]} 16. Nf6+ {[%clk 0:02:45]}  Nxf6 {[%clk 0:01:19]} 17. Qxf6 {[%clk 0:02:46]}  b6 {[%clk 0:01:15]} 18. Rxd4 {[%clk 0:02:45]}  Bb7 {[%clk 0:01:07]} 19. Bd3 {[%clk 0:02:44]}  Rxd4 {[%clk 0:01:01]} 20. Qxd4 {[%clk 0:02:45]}  Rd8 {[%clk 0:01:01]} 21. Qe3 {[%clk 0:02:46]}  Qb4 {[%clk 0:00:55]} 22. Ne2 {[%clk 0:02:46]}  Qa4 {[%clk 0:00:45]} 23. Kb1 {[%clk 0:02:46]}  Bd5 {[%clk 0:00:43]} 24. Nc3 {[%clk 0:02:45]}  Qc6 {[%clk 0:00:43]} 25. Nxd5 {[%clk 0:02:45]}  Qxd5 {[%clk 0:00:43]} 26. a3 {[%clk 0:02:43]}  b5 {[%clk 0:00:38]} 27. Re1 {[%clk 0:02:42]}  b4 {[%clk 0:00:38]} 28. axb4 {[%clk 0:02:41]}  Rb8 {[%clk 0:00:37]} 29. Qe4 {[%clk 0:02:38]}  Qd6 {[%clk 0:00:33]} 30. b5 {[%clk 0:02:38]}  Qb6 {[%clk 0:00:27]} 31. h5 {[%clk 0:02:39]}  a6 {[%clk 0:00:20]} 32. hxg6 {[%clk 0:02:38]}  axb5 {[%clk 0:00:20]} 33. gxf7+ {[%clk 0:02:39]}  Kxf7 {[%clk 0:00:20]} 34. Qh7+ {[%clk 0:02:39]}  Kf8 {[%clk 0:00:20]} 35. Qxh6+ {[%clk 0:02:38]}  Kf7 {[%clk 0:00:20]} 36. Bg6+ {[%clk 0:02:38]}  Ke7 {[%clk 0:00:19]} 37. Qg7+ {[%clk 0:02:38]}  Kd6 {[%clk 0:00:19]} 38. Rd1+ {[%clk 0:02:38]}  Kc5 {[%clk 0:00:19]} 39. Qc3# {[%clk 0:02:38]} 1-0


[Site "https://www.chess.com"]

[Event "Titled Tuesday Blitz March 21 Early 2023"]
[White "Vargas Pereda, Jesus Manue"]
[Black "Budisavljevic, Luka"]
[WhiteFideId "5115710"]
[BlackFideId "960047"]
[WhiteElo "1914"]
[BlackElo "2424"]
[Result "0-1"]
[Round "01"]
[TimeControl "180+2"]
[Date "2023.03.21"]
[WhiteClock "0:00:12"]
[BlackClock "0:00:27"]

1. d4 {[%clk 0:02:55]}  Nf6 {[%clk 0:02:59]} 2. Bf4 {[%clk 0:02:55]}  g6 {[%clk 0:02:55]} 3. Nc3 {[%clk 0:02:54]}  Bg7 {[%clk 0:02:56]} 4. e4 {[%clk 0:02:54]}  d6 {[%clk 0:02:56]} 5. Qd2 {[%clk 0:02:53]}  h5 {[%clk 0:02:54]} 6. h4 {[%clk 0:02:49]}  c6 {[%clk 0:02:48]} 7. f3 {[%clk 0:02:44]}  b5 {[%clk 0:02:43]} 8. O-O-O {[%clk 0:02:39]}  Nfd7 {[%clk 0:02:30]} 9. g4 {[%clk 0:02:30]}  hxg4 {[%clk 0:02:24]} 10. fxg4 {[%clk 0:02:26]}  b4 {[%clk 0:02:24]} 11. Nce2 {[%clk 0:02:26]}  a5 {[%clk 0:02:12]} 12. Bg2 {[%clk 0:01:59]}  Nb6 {[%clk 0:02:02]} 13. e5 {[%clk 0:01:37]}  Be6 {[%clk 0:01:57]} 14. d5 {[%clk 0:01:24]}  Nxd5 {[%clk 0:01:42]} 15. exd6 {[%clk 0:01:21]}  exd6 {[%clk 0:01:38]} 16. Nf3 {[%clk 0:01:19]}  Na6 {[%clk 0:01:36]} 17. Ng5 {[%clk 0:01:18]}  Qd7 {[%clk 0:01:29]} 18. Nxe6 {[%clk 0:01:12]}  fxe6 {[%clk 0:01:30]} 19. Bxd5 {[%clk 0:01:00]}  cxd5 {[%clk 0:01:26]} 20. Qd3 {[%clk 0:00:47]}  Nc5 {[%clk 0:01:07]} 21. Qxg6+ {[%clk 0:00:46]}  Kd8 {[%clk 0:01:06]} 22. h5 {[%clk 0:00:35]}  Kc7 {[%clk 0:00:55]} 23. h6 {[%clk 0:00:34]}  Be5 {[%clk 0:00:52]} 24. Bxe5 {[%clk 0:00:34]}  dxe5 {[%clk 0:00:53]} 25. g5 {[%clk 0:00:30]}  a4 {[%clk 0:00:47]} 26. Qf6 {[%clk 0:00:29]}  Qd6 {[%clk 0:00:38]} 27. g6 {[%clk 0:00:28]}  b3 {[%clk 0:00:36]} 28. cxb3 {[%clk 0:00:27]}  axb3 {[%clk 0:00:32]} 29. a3 {[%clk 0:00:27]}  Ne4 {[%clk 0:00:29]} 30. Qf7+ {[%clk 0:00:20]}  Kb6 {[%clk 0:00:30]} 31. Kb1 {[%clk 0:00:20]}  Qc6 {[%clk 0:00:25]} 32. Rc1 {[%clk 0:00:20]}  Nd2+ {[%clk 0:00:24]} 33. Ka1 {[%clk 0:00:20]}  Qd6 {[%clk 0:00:25]} 34. Nc3 {[%clk 0:00:19]}  Rxa3+ {[%clk 0:00:25]} 35. bxa3 {[%clk 0:00:19]}  Qxa3+ {[%clk 0:00:26]} 36. Na2 {[%clk 0:00:12]}  b2# {[%clk 0:00:27]} 0-1


[Site "https://www.chess.com"]

[Event "Titled Tuesday Blitz March 21 Early 2023"]
[White "Andreikin, Dmitry"]
[Black "Manukyan, Sargis A."]
[WhiteFideId "4158814"]
[BlackFideId "13303970"]
[WhiteElo "2736"]
[BlackElo "2187"]
[Result "1-0"]
[Round "02"]
[TimeControl "180+2"]
[Date "2023.03.21"]
[WhiteClock "0:00:37"]
[BlackClock "0:01:32"]

1. Nf3 {[%clk 0:03:00]}  d5 {[%clk 0:02:56]} 2. c4 {[%clk 0:03:00]}  e6 {[%clk 0:02:56]} 3. g3 {[%clk 0:02:58]}  Nf6 {[%clk 0:02:48]} 4. Bg2 {[%clk 0:02:58]}  Be7 {[%clk 0:02:48]} 5. O-O {[%clk 0:02:57]}  O-O {[%clk 0:02:48]} 6. Na3 {[%clk 0:02:58]}  c5 {[%clk 0:02:46]} 7. d4 {[%clk 0:02:56]}  cxd4 {[%clk 0:02:43]} 8. Nxd4 {[%clk 0:02:51]}  Nc6 {[%clk 0:02:44]} 9. Be3 {[%clk 0:02:46]}  Nxd4 {[%clk 0:02:40]} 10. Bxd4 {[%clk 0:02:47]}  Bxa3 {[%clk 0:02:41]} 11. bxa3 {[%clk 0:02:45]}  dxc4 {[%clk 0:02:41]} 12. Rc1 {[%clk 0:02:43]}  Qa5 {[%clk 0:02:34]} 13. Rxc4 {[%clk 0:02:42]}  Rd8 {[%clk 0:02:35]} 14. Qa1 {[%clk 0:02:40]}  Ne8 {[%clk 0:02:33]} 15. h4 {[%clk 0:02:20]}  Qxa3 {[%clk 0:02:26]} 16. Rfc1 {[%clk 0:02:19]}  Bd7 {[%clk 0:02:24]} 17. Bxb7 {[%clk 0:02:15]}  Rab8 {[%clk 0:02:24]} 18. Bf3 {[%clk 0:02:08]}  Bb5 {[%clk 0:02:25]} 19. Rc5 {[%clk 0:02:01]}  a6 {[%clk 0:02:18]} 20. Kg2 {[%clk 0:01:49]}  h6 {[%clk 0:02:17]} 21. Be5 {[%clk 0:01:43]}  Rb6 {[%clk 0:02:08]} 22. Rc8 {[%clk 0:01:41]}  Qe7 {[%clk 0:02:06]} 23. a4 {[%clk 0:01:36]}  Rxc8 {[%clk 0:02:01]} 24. Rxc8 {[%clk 0:01:35]}  Bxe2 {[%clk 0:02:01]} 25. Rxe8+ {[%clk 0:01:26]}  Qxe8 {[%clk 0:02:02]} 26. Bxe2 {[%clk 0:01:26]}  Rb3 {[%clk 0:02:01]} 27. Bxg7 {[%clk 0:01:17]}  Qc6+ {[%clk 0:02:01]} 28. Kh2 {[%clk 0:01:17]}  Qc2 {[%clk 0:01:54]} 29. Bh8 {[%clk 0:01:04]}  Qh7 {[%clk 0:01:44]} 30. Qd1 {[%clk 0:00:55]}  Qb1 {[%clk 0:01:35]} 31. Qd8+ {[%clk 0:00:53]}  Kh7 {[%clk 0:01:36]} 32. Bd4 {[%clk 0:00:38]}  Rb8 {[%clk 0:01:31]} 33. Qf6 {[%clk 0:00:38]}  Qg6 {[%clk 0:01:32]} 34. Bd3 {[%clk 0:00:37]} 1-0


[Site "https://www.chess.com"]